Workbook

Sheet AIR@PIX
B1: =IF(Расчёт!M10=1,"1",IF(Расчёт!M10=2,"2")) -> 1
B2: =IF(B17=1,"0с75",IF(B17=2,"1с1",IF(B17=3,"1с5",IF(B17=4,"2c2",IF(B17=5,"3",IF(B17=6,"4",IF(B17=7,"5c5",IF(B17=8,"7c5")))))))) -> 0с75
B3: =IF(B13=1,"100",IF(B13=2,"200",IF(B13=3,"300"))) -> 100
B4: =IF(B14=1,"10",IF(B14=2,"20",IF(B14=3,"30",IF(B14=4,"40",IF(B14=5,"50",IF(B14=6,"60",IF(B14=7,"70",IF(B14=8,"80")))))))) -> 10 | N4: Опт цена: | Q4: Стоимость:
B5: =B17 -> 1 | N5: =Расчёт!G213 -> 27361.26 | O5: * | P5: =Расчёт!G214 -> 28550.88
B6: =B3+B4+B5 -> 111 | D6: ООО "Аир контроль", г.Пермь
B7: =IF(B17<5,"1",IF(B17=5,"1",IF(B17>5,"2"))) -> 1 | C7: E-mail: | D7: Controls.kpp@GMAIL.com
B9: =B3+B4+B7 -> 111 | E9: AIR@PIX - | F9: =IF(B13=1,"S",IF(B13=2,"SE",IF(B13=3,"SV"))) -> S | G9: =IF(Расчёт!J3=3,B1,B2) -> 0с75 | H9: . | I9: =IF(B14=1,"HW",IF(B14>1,"HE")) -> HW | J9: =IF(B14=2,"3",IF(B14=3,"9",IF(B14=4,"12",IF(B14=5,"15",IF(B14=6,"18",IF(B14=7,"22c5",IF(B14>7,"30"," "))))))) ->  | K9: . | L9: =IF(Расчёт!J33=1,"~3","~1") -> ~3 | O9: Стоимость - Цена на щит управления является приблизительной. Может отличаться при фактическом выставлении счёта, как в сторону удорожания так и в сторону удешевления в зависимоти от изменения цен на комплектующие. *Опт цена: - Цена предоставляется постоянным клиента, с которыми заключен договор. Или при разовом заказе от трёх шкафов.
D12: Тип установки | L12: Ввод питания
B13: =Расчёт!J3 -> 1
B14: =Расчёт!J20 -> 1
D15: Мощность двигателя | L15: Тип нагревателя
B16: =Расчёт!J9 -> 0
B17: =Расчёт!J10 -> 1
B19: FALSE
B21: FALSE
B23: FALSE
B25: FALSE
B27: FALSE
B29: FALSE
B31: FALSE
B33: FALSE
L36: Циркуляционные насосы, регулирующие клапаны с приводами, а также датчики контроля и сигнализации в расчет не включены. Питание на водяной насос предполагается однофазное 220В, регулирующий привод с питанием 24В и управл сигналом 0…10В. Привод воздушной заслонки 220В.
L42: Модули управления включают элементы защиты, соединения и коммутации ведущих торговых марок Legrand и Schneider Electric (автоматические выключатели, токовая и тепловая защита, предохранители), элементы коммутации (контакторы,реле). Элементы контроля и управления (конфигурируемый модульный контроллер Segnetics PIXEL1211). Контроллер имеет простой планировщик на неделю, матричный дисплей для отображения всех настроек, показаний датчиков и состояния системы. Стандартно установлен интерфейс RS485 с протоколом ModBUS-RTU, дополнительно имеется возможность установки модулей LON или ModBUS-TCP. Модули выполнены в пластиковом корпусе Schneider Electric Kaedra (размер определяется выбранной конфигурацией) степенью защиты IP65 для систем с водяным нагревателем. Оборудование регулирования скорости трёхфазных вентиляторов (частотный преобразователь или трансформаторный регулятор) устанавливаются вне модуля управления.
L57: Привод заслонки, датчики контроля и сигнализации и другое навесное оборудование в расчет не включены. Питание на привод воздушной заслонки 220В.
L59: Модули управления включают элементы защиты, соединения и коммутации ведущих торговых марок Legrand и Schneider Electric (автоматические выключатели, токовая и тепловая защита, предохранители), элементы коммутации (контакторы,реле). Элементы контроля и управления (конфигурируемый модульный контроллер Segnetics PIXEL1211). Контроллер имеет простой планировщик на неделю, матричный дисплей для отображения всех настроек, показаний датчиков и состояния системы. Стандартно установлен интерфейс RS485 с протоколом ModBUS-RTU, дополнительно имеется возможность установки модулей LON или ModBUS-TCP. Модули выполнены в пластиковом корпусе Schneider Electric Kaedra (размер определяется выбранной конфигурацией) степень защиты IP54 для систем с нагревателем не более 3кВт, для систем с нагревателем большей мощности степень защиты снижена до IP20, за счёт врезки в корпус вентиляционных отверстий.
L74: Оборудование регулирования скорости трёхфазных вентиляторов (частотный преобразователь или трансформаторный регулятор) устанавливаются вне модуля управления.
H79: Циркуляционные насосы, регулирующие клапаны с приводами, а также датчики контроля и сигнализации в расчет не включены. Питание на водяной насос предполагается однофазное 220В, регулирующий привод с питанием 24В и управл сигналом 0…10В. Привод воздушной заслонки 220В.
H81: Модули управления включают элементы защиты, соединения и коммутации ведущих торговых марок Legrand и Schneider Electric (автоматические выключатели, токовая и тепловая защита, предохранители), элементы коммутации (контакторы,реле). Элементы контроля и управления (конфигурируемый модульный контроллер Segnetics PIXEL1211). Контроллер имеет простой планировщик на неделю, матричный дисплей для отображения всех настроек, показаний датчиков и состояния системы. Стандартно установлен интерфейс RS485 с протоколом ModBUS-RTU, дополнительно имеется возможность установки модулей LON или ModBUS-TCP. Модули выполнены в пластиковом корпусе Schneider Electric Kaedra (размер определяется выбранной конфигурацией) степенью защиты IP65 для систем с водяным нагревателем. Оборудование регулирования скорости трёхфазных вентиляторов (частотный преобразователь или трансформаторный регулятор) устанавливаются вне модуля управления.
L102: Привод заслонки, датчики контроля и сигнализации и другое навесное оборудование в расчет не включены. Питание на привод воздушной заслонки 220В.
L106: Модули управления включают элементы защиты, соединения и коммутации ведущих торговых марок Legrand и Schneider Electric (автоматические выключатели, токовая и тепловая защита, предохранители), элементы коммутации (контакторы,реле). Элементы контроля и управления (конфигурируемый модульный контроллер Segnetics PIXEL1211). Контроллер имеет простой планировщик на неделю, матричный дисплей для отображения всех настроек, показаний датчиков и состояния системы. Стандартно установлен интерфейс RS485 с протоколом ModBUS-RTU, дополнительно имеется возможность установки модулей LON или ModBUS-TCP. Модули выполнены в пластиковом корпусе Schneider Electric Kaedra (размер определяется выбранной конфигурацией) степень защиты IP54 для систем с нагревателем не более 3кВт, для систем с нагревателем большей мощности степень защиты снижена до IP20, за счёт врезки в корпус вентиляционных отверстий.
L117: Оборудование регулирования скорости трёхфазных вентиляторов (частотный преобразователь или трансформаторный регулятор) устанавливаются вне модуля управления.
H120: Циркуляционные насосы, регулирующие клапаны с приводами, а также датчики контроля и сигнализации в расчет не включены. Питание на водяной насос предполагается однофазное 220В, регулирующий привод с питанием 24В и управл сигналом 0…10В. Привод воздушной заслонки 220В.
H125: Модули управления включают элементы защиты, соединения и коммутации ведущих торговых марок Legrand и Schneider Electric (автоматические выключатели, токовая и тепловая защита, предохранители), элементы коммутации (контакторы,реле). Элементы контроля и управления (конфигурируемый модульный контроллер Segnetics PIXEL1211). Контроллер имеет простой планировщик на неделю, матричный дисплей для отображения всех настроек, показаний датчиков и состояния системы. Стандартно установлен интерфейс RS485 с протоколом ModBUS-RTU, дополнительно имеется возможность установки модулей LON или ModBUS-TCP. Модули выполнены в пластиковом корпусе Schneider Electric Kaedra (размер определяется выбранной конфигурацией) степенью защиты IP65 для систем с водяным нагревателем. Оборудование регулирования скорости трёхфазных вентиляторов (частотный преобразователь или трансформаторный регулятор) устанавливаются вне модуля управления.
G141: Привод заслонки, датчики контроля и сигнализации и другое навесное оборудование в расчет не включены. Питание на привод воздушной заслонки 220В.
G143: Модули управления включают элементы защиты, соединения и коммутации ведущих торговых марок Legrand и Schneider Electric (автоматические выключатели, токовая и тепловая защита, предохранители), элементы коммутации (контакторы,реле). Элементы контроля и управления (конфигурируемый модульный контроллер Segnetics PIXEL1211). Контроллер имеет простой планировщик на неделю, матричный дисплей для отображения всех настроек, показаний датчиков и состояния системы. Стандартно установлен интерфейс RS485 с протоколом ModBUS-RTU, дополнительно имеется возможность установки модулей LON или ModBUS-TCP. Модули выполнены в пластиковом корпусе Schneider Electric Kaedra (размер определяется выбранной конфигурацией) степень защиты IP54 для систем с нагревателем не более 3кВт, для систем с нагревателем большей мощности степень защиты снижена до IP20, за счёт врезки в корпус вентиляционных отверстий.
G157: Оборудование регулирования скорости трёхфазных вентиляторов (частотный преобразователь или трансформаторный регулятор) устанавливаются вне модуля управления.

Sheet Расчёт (hidden)
A1: Артикул | B1: Наименование | C1: Ед.Изм. | D1: Вход
E2: К-во | F2: контроль | G2: Сумма
J3: 1 | K3: Тип установки | M3: =J3*10+M20 -> 11 | N3: Выбор конфигурации
A4: sch09181+09178 | B4: Пластиковый модуль на железный щит IP55 | C4: шт | D4: 2899 | F4: 1 | G4: =D4*E4*F4 -> 0 | J4: 1 | K4: Приточный вентилятор, без регулирования
A5: leg 602332 | B5: Пластиковый модуль на железный щит | C5: шт | D5: 1500 | F5: 1 | G5: 0 | J5: 2 | K5: Приточно-вытяжная установка
A6: sch 13979 | B6: Пластиковый щит Kaedra 1*12 | C6: шт | D6: 2897 | F6: 1 | G6: 0 | J6: 3 | K6: Приточный вентилятор с симисторным регулятором скорости для однофазного вентилятора
A7: sch 13983 | B7: Пластиковый щит Kaedra 2*12 | C7: шт | D7: 3183 | E7: =IF(J3=1,1,0) -> 1 | F7: =IF(J20>1,0,1) -> 1 | G7: 3183
A8: sch 13984 | B8: Пластиковый щит Kaedra 2*18 | C8: шт | D8: 3470 | E8: =IF(J3=2,1,0) -> 0 | F8: 1 | G8: 0
A9: sch 13985 | B9: Пластиковый щит Kaedra 3*12 | C9: шт | D9: 3470 | E9: =IF(J20<7,1,0) -> 1 | F9: =IF(J20=1,0,1) -> 0 | G9: 0
A10: sch 13986 | B10: Пластиковый щит Kaedra 3*18 | C10: шт | D10: 4580 | E10: =IF(J20>6,1,0) -> 0 | F10: =IF(J20=1,0,1) -> 0 | G10: 0 | J10: 1 | K10: Мощность двигателя ~380В | M10: 1 | N10: Мощность двигателя ~220В
A11: sch 13934 | B11: Комплект соеденителя для щитов | C11: шт | D11: 600 | F11: 1 | G11: 0 | J11: 1 | K11: ~380В 0,75кВт | M11: 1 | N11: ~220В до 1,8А
A12: sar 08831…35 | B12: Комплект гермовводов для кабеля | C12: шт | D12: 960 | F12: 1 | G12: 0 | J12: 2 | K12: ~380В 1,1кВт | M12: 2 | N12: ~220В до 6А
J13: 3 | K13: ~380В 1,5кВт
A14: sch 83319 | B14: Sarel S3D шкаф c платой 400х400х200 | C14: шт | F14: 1 | G14: =D14*E14*F14 -> 0 | J14: 4 | K14: ~380В 2,2кВт
A15: sch 83324 | B15: Sarel S3D шкаф c платой 500х400х200 | C15: шт | F15: 1 | G15: 0 | J15: 5 | K15: ~380В 3кВт
A16: sch 83326 | B16: Sarel S3D шкаф c платой 600х400х200 | C16: шт | D16: 3635 | F16: 1 | G16: 0 | J16: 6 | K16: ~380В 4кВт
A17: sch 83327 | B17: Sarel S3D шкаф c платой 600х400х250 | C17: шт | D17: 4555 | F17: 1 | G17: 0 | J17: 7 | K17: ~380В 5,5кВт
A18: sch 83335 | B18: Sarel S3D шкаф c платой 700х500х250 | C18: шт | D18: 5785 | F18: 1 | G18: 0 | J18: 8 | K18: ~380В 7,5кВт
A19: sch 83343 | B19: Sarel S3D шкаф c платой 800х600х200 | C19: шт | D19: 7383 | F19: 1 | G19: 0
A20: sch 83356 | B20: Sarel S3D шкаф c платой 800х600х250 | C20: шт | D20: 9364 | F20: 1 | G20: 0 | J20: 1 | K20: Тип нагревателя | M20: =IF(J20=1,1,0) -> 1
A21: sch 83354 | B21: Sarel S3D шкаф c платой 1000х600х250 | C21: шт | D21: 12200 | F21: 1 | G21: 0 | J21: 1 | K21: Водяной нагреватель
A22: sch 51565 | B22: Sarel кабельный ввод с мембраной 445x130 | C22: шт | D22: 2500 | F22: 1 | G22: 0 | J22: 2 | K22: Электронагреватель до 3кВт ~220В
A23: YKM40-04-54 | B23: ИЭК шкаф c платой 800х650х250 | C23: шт | D23: 6270 | F23: 1 | G23: 0 | J23: 3 | K23: Электронагреватель 9кВт ~380В
J24: 4 | K24: Электронагреватель 12кВт ~380В
A25: DOP-AS35THTD | B25: 3.5" TFT 320x240 пикс. 65536 цветов | C25: шт | D25: 13000 | F25: 1 | G25: =D25*E25*F25 -> 0 | J25: 5 | K25: Электронагреватель 15кВт ~380В
B26: Pixel 1211-02-0 c акамулятором | C26: шт | D26: 7000 | E26: =IF(J3>0,1,0) -> 1 | F26: 1 | G26: 7000 | J26: 6 | K26: Электронагреватель 18кВт ~380В
B27: Pixel 2511-02-0 c акамулятором | C27: шт | D27: 7900 | F27: 1 | G27: 0 | J27: 7 | K27: Электронагреватель 22,5кВт ~380В
B28: MR-504-0 5 дискретных выходов + 4 Аналоговых выхода | C28: шт | D28: 5000 | F28: 1 | G28: 0 | J28: 8 | K28: Электронагреватель 27кВт ~380В
B29: MR-061-0 6 дискретных выходов на основе симисторов | C29: шт | D29: 3755 | F29: 1 | G29: 0 | J29: 9 | K29: Электронагреватель 30кВт ~380В
B30: MR-800-0 релейный модуль (8 дискретных выходов) | C30: шт | D30: 3900 | F30: 1 | G30: 0
B31: MR-810-0 модуль входов на переменное напряжение 220В | C31: шт | D31: 3800 | F31: 1 | G31: 0
B32: CMH 2G + модуль MC (7AI + 12DI + 2AOut + 8DOut) | C32: шт | D32: 16400 | F32: 1 | G32: 0
B33: CMH C2010-1221 | C33: шт | D33: 9600 | F33: 1 | G33: 0 | J33: 1 | K33: Тип вводного питания
B34: Релейный модуль | C34: шт | D34: 3780 | F34: 1 | G34: 0 | J34: 1 | K34: Трёхфазный ввод
J35: 2 | K35: Однофазный ввод
B36: Датчик температуры TG-R5/PT1000 | C36: шт | D36: 1200 | F36: 1 | G36: =D36*E36*F36 -> 0
A37: sch 13944 | B37: Пластиковая панель в щит Kaedra 12модулей | C37: шт | D37: 300 | F37: 1 | G37: 0
A38: sch 13945 | B38: Пластиковая панель в щит Kaedra 18модулей | C38: шт | D38: 300 | F38: 1 | G38: 0
A39: sar 87911 | B39: Выпускная решётка 120x120 sar 87911 | C39: шт | D39: 1340 | F39: 1 | G39: 0
A40: sar 87901 | B40: Вентилятор + решётка 150x150 sar 87901 | C40: шт | D40: 2000 | F40: 1 | G40: 0
B41: Вентиляционная решётка | C41: шт | D41: 95 | E41: =IF(J20>2,2,0) -> 0 | F41: 1 | G41: 0
B42: Вентилятор для удаления тепла из щита | C42: шт | D42: 625 | F42: 1 | G42: 0
A43: HD 2544 ZD 3 | B43: Реле твердотельное 1 фазное HD2544ZD3 до 17А | C43: шт | D43: 755 | E43: =IF(J20=2,1,IF(J20=3,2,0)) -> 0 | F43: 1 | G43: 0
A44: HD 4044 ZD 3 | B44: Реле твердотельное 1 фазное HD4044ZD3 до 28А | C44: шт | D44: 837 | E44: =IF(J20>3,2,0) -> 0 | F44: 1 | G44: 0
A45: HDН 6044 ZD 3 | B45: Реле твердотельное 1 фазное HDН6044ZD3 до 42А | C45: шт | D45: 1375 | F45: 1 | G45: 0
A46: HDН 8044 ZD 3 | B46: Реле твердотельное 1 фазное HDН8044ZD3 до 56А | C46: шт | D46: 1416 | F46: 1 | G46: 0
A47: PTP 061 | B47: Радиатор для однофазного реле (серии HD, HDH) до 40А | C47: шт | D47: 448 | E47: =IF(J20=2,1,IF(J20>2,2,0)) -> 0 | F47: 1 | G47: 0
A49: DVPPS02 | B49: Источник питания 24В/48Вт/2А | C49: шт | D49: 2200 | E49: =IF(J20>1,1,0) -> 0 | F49: 1 | G49: =D49*E49*F49 -> 0
A50: ABL7CEM24006 | B50: Источник питания 24В/15Вт/0,6А | C50: шт | D50: 1800 | F50: 1 | G50: =D50*E50*F50 -> 0
A51: SEM62.1 | B51: Трансформатор Siemens SEM62.1 | C51: шт | D51: 1800 | E51: =IF(J20=1,1,0) -> 1 | F51: 1 | G51: =D51*E51*F51 -> 1800
A53: RM17TG20 | B53: РЕЛЕ КОНТРОЛЯ ЧЕРЕДОВАНИЯ ОБРЫВА ФАЗ | C53: шт | D53: 1855 | F53: 1 | G53: =D53*E53*F53 -> 0
A54: RE11LAMW | B54: РЕЛЕ ВЫД.ВКЛЮЧЕНИЕ ~/=24-240В СТАТ ВЫХ | C54: шт | D54: 1400 | F54: 1 | G54: =D54*E54*F54 -> 0
A55: RE11RAMU | B55: РЕЛЕ ВЫД. ВКЛ =24В, ~24-240В РЕЛ ВЫХ | C55: шт | D55: 1400 | F55: 1 | G55: =D55*E55*F55 -> 0
A56: RE11RHMU | B56: РЕЛЕ ВЫД. ВЫКЛ =24В, ~24-240В РЕЛ ВЫХ | C56: шт | D56: 1400 | F56: 1 | G56: =D56*E56*F56 -> 0
A58: GS1PPB3 | B58: РУБИЛЬНИК 3X315A/B1-B3 | C58: шт | D58: 19531 | F58: 1 | G58: =D58*E58*F58 -> 0
A59: leg 37308 | B59: Распределительный блок 400А | C59: шт | D59: 12420 | F59: 1 | G59: =D59*E59*F59 -> 0
A61: GV3P32/24-32 | B61: Выключатель автоматический с тепловым реле | C61: шт | D61: 6480 | F61: 1 | G61: =D61*E61*F61 -> 0
A62: GV3P40/30-40 | B62: Выключатель автоматический с тепловым реле | C62: шт | D62: 6540 | F62: 1 | G62: 0
A63: GV3P65/48-65 | B63: Выключатель автоматический с тепловым реле | C63: шт | D63: 7560 | F63: 1 | G63: 0
A64: GK3EF80/48-80 | B64: Выключатель автоматический с тепловым реле | C64: шт | D64: 9060 | F64: 1 | G64: 0
A65: VAMU0с63 | B65: Выкл. Авт. с тепловым реле ВАМУ 0,4-0,63 | C65: шт | D65: 1100 | E65: =IF(J3=1,1,IF(J3=2,2,0)) -> 1 | F65: =IF(J10<6,1,0) -> 1 | G65: 1100
A66: VAMU14 | B66: Выкл. Авт. с тепловым реле ВАМУ 9-14А 5,5кВт | C66: шт | D66: 1100 | E66: =IF(J3=1,1,IF(J3=2,2,0)) -> 1 | F66: =IF(J10>5,1,0) -> 0 | G66: 0
A67: VAMU25 | B67: Выкл. Авт. с тепловым реле ВАМУ 20-25А 11кВт | C67: шт | D67: 1100 | F67: 1 | G67: 0
A69: sch 23794 | B69: АВТ. ВЫКЛ. C60a 1П 2A C | C69: шт | D69: 431 | E69: =IF(J3<4,1,0) -> 1 | F69: =IF(J20=1,2,1) -> 2 | G69: =D69*E69*F69 -> 862
A70: sch 23794 | B70: АВТ. ВЫКЛ. C60а 1П 2A C | C70: шт | D70: 431 | E70: =IF(J3=3,1,0) -> 0 | F70: =IF(J10=1,1,0) -> 1 | G70: 0
A71: sch 24399 | B71: АВТ. ВЫКЛ. C60N 1П 6A C | C71: шт | D71: 207 | E71: =IF(J10=2,1,0) -> 0 | F71: 1 | G71: 0
A72: sch 24401 | B72: АВТ. ВЫКЛ. C60N 1П 10A C | C72: шт | D72: 207 | F72: 1 | G72: 0
A73: sch 24403 | B73: АВТ. ВЫКЛ. C60N 1П 16A C | C73: шт | D73: 207 | E73: =IF(J20=2,1,0) -> 0 | F73: 1 | G73: 0
A74: sch 24404 | B74: АВТ. ВЫКЛ. C60N 1П 20A C | C74: шт | D74: 207 | F74: 1 | G74: 0
A76: sch 24335 | B76: АВТ. ВЫКЛ. C60N 2П 6A C | C76: шт | D76: 552 | F76: 1 | G76: =D76*E76*F76 -> 0
A77: sch 24336 | B77: АВТ. ВЫКЛ. C60N 2П 10A C | C77: шт | D77: 552 | F77: 1 | G77: =D77*E77*F77 -> 0
A78: sch 24337 | B78: АВТ. ВЫКЛ. C60N 2П 16A C | C78: шт | D78: 552 | F78: 1 | G78: =D78*E78*F78 -> 0
A79: sch 24338 | B79: АВТ. ВЫКЛ. C60N 2П 20A C | C79: шт | D79: 552 | F79: 1 | G79: =D79*E79*F79 -> 0
A80: sch 24339 | B80: АВТ. ВЫКЛ. C60N 2П 25A C | C80: шт | D80: 552 | F80: 1 | G80: =D80*E80*F80 -> 0
A82: sch 24348 | B82: АВТ. ВЫКЛ. C60N 3П 6A C | C82: шт | D82: 819 | F82: 1 | G82: =D82*E82*F82 -> 0
A83: sch 24349 | B83: АВТ. ВЫКЛ. C60N 3П 10A C | C83: шт | D83: 661 | E83: =IF(J20=4,1,0) -> 0 | F83: 1 | G83: 0
A84: sch 24350 | B84: АВТ. ВЫКЛ. C60N 3П 16A C | C84: шт | D84: 661 | E84: =IF(J20=3,1,IF(J20=7,1,IF(J3=2,1,0))) -> 0 | F84: =IF(J10<6,1,0) -> 1 | G84: 0
A85: sch 24351 | B85: АВТ. ВЫКЛ. C60N 3П 20A C | C85: шт | D85: 661 | E85: =IF(J3=1,1,0) -> 1 | F85: =IF(J20>4,0,1) -> 1 | G85: 661
A86: sch 24352 | B86: АВТ. ВЫКЛ. C60N 3П 25A C | C86: шт | D86: 661 | E86: =IF(J20=5,1,IF(J20=7,1,IF(J20>7,2,0))) -> 0 | F86: 1 | G86: 0
A87: sch 24353 | B87: АВТ. ВЫКЛ. C60N 3П 32A C | C87: шт | D87: 893 | E87: =IF(J20=5,1,IF(J20=6,1,0)) -> 0 | F87: 1 | G87: 0
A88: sch 24353 | B88: АВТ. ВЫКЛ. C60N 3П 32A C | C88: шт | D88: 893 | E88: =IF(J3=2,1,0) -> 0 | F88: =IF(J10>5,1,0) -> 0 | G88: =D88*E88*F88 -> 0
A89: sch 24354 | B89: АВТ. ВЫКЛ. C60N 3П 40A C | C89: шт | D89: 893 | E89: =IF(J20=6,1,IF(J20=7,1,0)) -> 0 | F89: 1 | G89: 0
A90: sch 24355 | B90: АВТ. ВЫКЛ. C60N 3П 50A C | C90: шт | D90: 1161 | E90: =IF(J20=8,1,0) -> 0 | F90: 1 | G90: 0
A91: sch 24356 | B91: АВТ. ВЫКЛ. C60N 3П 63A C | C91: шт | D91: 1395 | E91: =IF(J20=9,1,0) -> 0 | F91: 1 | G91: 0
A92: sch 18367 | B92: АВТ. ВЫКЛ. C120N 3п 100A C | C92: шт | D92: 7140 | F92: 1 | G92: 0
A93: sch 18369 | B93: АВТ. ВЫКЛ. C120N 3п 125A C | C93: шт | D93: 9540 | F93: 1 | G93: 0
A94: ВА88-33 120А | B94: АВТ. ВЫКЛ. ВА88-33 3п 120A C | C94: шт | D94: 2060 | F94: 1 | G94: 0
A95: ВА88-33 160А | B95: АВТ. ВЫКЛ. ВА88-33 3п 160A C | C95: шт | D95: 2060 | F95: 1 | G95: 0
A96: ВА88-33 200А | B96: АВТ. ВЫКЛ. ВА88-33 3п 200A C | C96: шт | D96: 3070 | F96: 1 | G96: 0
A97: ИЭК ОПС1 С (II) | B97: Огранечитель импусных перенапряжений 3п | C97: шт | D97: 3600 | F97: 1 | G97: 0
A99: leg 37181 | B99: Держател плавких вставок | C99: шт | D99: 100 | E99: =IF(J20>2,1,0) -> 0 | F99: 1 | G99: =D99*E99*F99 -> 0
A101: LC1K0610M7 | B101: КОНТАКТОР.3Р,06A,НО,240V50ГЦ. | C101: шт | D101: 802 | F101: 1 | G101: =D101*E101*F101 -> 0
A102: LC1D09M7 | B102: КОНТАКТОР.3Р,09A,НО+НЗ,240V50ГЦ. | C102: шт | D102: 1080 | F102: 1 | G102: 0
A103: LC1D12M7 | B103: КОНТАКТОР.3Р,12A,НО+НЗ,240V50ГЦ. | C103: шт | D103: 1500 | F103: 1 | G103: 0
A104: LC1D18M7 | B104: КОНТАКТОР.3Р,18A,НО+НЗ,240V50ГЦ. | C104: шт | D104: 1800 | F104: 1 | G104: 0
A105: LC1D25M7 | B105: КОНТАКТОР.3Р,25A,НО+НЗ,240V50ГЦ. | C105: шт | D105: 2640 | F105: 1 | G105: 0
A106: PMU0910M | B106: КОНТАКТОР.ПМУ 3Р,09A,НО,240V50ГЦ. | C106: шт | D106: 350 | E106: =IF(J3=1,1,IF(J3=2,2,IF(J3=3,1,0))) -> 1 | F106: =IF(J10<6,1,0) -> 1 | G106: 350
A107: PMU0910M | B107: КОНТАКТОР.ПМУ 3Р,09A,НО,240V50ГЦ. | C107: шт | D107: 350 | E107: =IF(J20<4,1,0) -> 1 | F107: 1 | G107: 350
A108: PMU1210M | B108: КОНТАКТОР.ПМУ 3Р,12A,НО,240V50ГЦ. | C108: шт | D108: 425 | E108: =IF(J20=7,1,0) -> 0 | F108: 1 | G108: 0
A109: PMU1210M | B109: КОНТАКТОР.ПМУ 3Р,12A,НО,240V50ГЦ. | C109: шт | D109: 425 | E109: =IF(J10>5,1,0) -> 0 | F109: =IF(J3=2,1,0) -> 0 | G109: =D109*E109*F109 -> 0
A110: PMU1810M | B110: КОНТАКТОР.ПМУ 3Р,18A,НО,240V50ГЦ. | C110: шт | D110: 453 | E110: =IF(J20=4,1,IF(J20=5,1,IF(J20=6,1,IF(J20=7,1,IF(J20>7,2,0))))) -> 0 | F110: 1 | G110: 0
A111: PMU1810M | B111: КОНТАКТОР.ПМУ 3Р,18A,НО,240V50ГЦ. | C111: шт | D111: 453 | E111: =IF(J10>5,1,0) -> 0 | F111: 1 | G111: =D111*E111*F111 -> 0
A112: PMU2510M | B112: КОНТАКТОР.ПМУ 3Р,25A,НО,240V50ГЦ. | C112: шт | D112: 637 | F112: 1 | G112: 0
A113: PMU3210M | B113: КОНТАКТОР.ПМУ 3Р,32A,НО,240V50ГЦ. | C113: шт | D113: 820 | F113: 1 | G113: 0
A114: PMU4011М | B114: КОНТАКТОР.ПМУ 3Р,40A,НО,240V50ГЦ. | C114: шт | D114: 1260 | F114: 1 | G114: 0
A115: PMU5011М | B115: КОНТАКТОР.ПМУ 3Р,50A,НО,240V50ГЦ. | C115: шт | D115: 1440 | F115: 1 | G115: 0
A116: PMU6511М | B116: КОНТАКТОР.ПМУ 3Р,65A,НО,240V50ГЦ. | C116: шт | D116: 2135 | F116: 1 | G116: 0
A117: PMU9511М | B117: КОНТАКТОР.ПМУ 3Р,95A,НО,240V50ГЦ. | C117: шт | D117: 5000 | F117: 1 | G117: 0
A118: Leg 04049 | B118: КОНТАКТОР под автомат 20А 250В | C118: шт | D118: 1080 | F118: 1 | G118: 0
A120: RTL1U10 | B120: Тепловое реле перегрузки 7-10А | C120: шт | D120: 616 | F120: 1 | G120: =D120*E120*F120 -> 0
A121: RTL2U32 | B121: Тепловое реле перегрузки 23-32А | C121: шт | D121: 616 | F121: 1 | G121: =D121*E121*F121 -> 0
A122: RTL3U40 | B122: Тепловое реле перегрузки 30-40А | C122: шт | D122: 616 | F122: 1 | G122: =D122*E122*F122 -> 0
A123: RTL3U65 | B123: Тепловое реле перегрузки 48-65А | C123: шт | D123: 616 | F123: 1 | G123: =D123*E123*F123 -> 0
A124: RTL3U104 | B124: Тепловое реле перегрузки 80-104А | C124: шт | D124: 616 | F124: 1 | G124: =D124*E124*F124 -> 0
A126: sch RXM4AB1P7 | B126: РЕЛЕ 4 CO 230В ПЕРЕМ ТОКА 7A | C126: шт | D126: 355 | F126: 1 | G126: =D126*E126*F126 -> 0
A127: sch RXM4AB1B7 | B127: РЕЛЕ 4 CO 24В ПЕРЕМ ТОКА 7A | C127: шт | D127: 250 | F127: 1 | G127: 0
A128: sch RXZE2S114M | B128: КОЛОДКА С РАЗДЕЛЬНЫМИ КОНТ 4CO 27MM 7A | C128: шт | D128: 190 | F128: 1 | G128: 0
A129: sch RXZR335 | B129: ПЛАСТИКОВАЯ СКОБА-ДЕРЖАТЕЛЬ | C129: шт | D129: 11 | F129: 1 | G129: 0
A130: sch RSB2A080B7 | B130: РЕЛЕ 2 CO 24В ПЕРЕМ ТОКА 5A | C130: шт | D130: 204 | F130: 1 | G130: 0
A131: sch RSB2A080M7 | B131: РЕЛЕ 2 CO 220В ПЕРЕМ ТОКА 5A | C131: шт | D131: 283 | E131: =IF(J3=1,1,IF(J3=2,2,IF(J3=3,1,0))) -> 1 | F131: =IF(J20>6,2,1) -> 1 | G131: 283
A132: sch RSZE1S48M | B132: КОЛОДКА С РАЗДЕЛЬНЫМИ КОНТ 2CO 27MM 5A | C132: шт | D132: 229 | E132: =IF(J3=1,1,IF(J3=2,2,IF(J3=3,1,0))) -> 1 | F132: =IF(J20>6,2,1) -> 1 | G132: 229
A133: sch RSZR215 | B133: ПЛАСТИКОВАЯ СКОБА-ДЕРЖАТЕЛЬ | C133: шт | D133: 8.4 | E133: =IF(J3=1,1,IF(J3=2,2,IF(J3=3,1,0))) -> 1 | F133: =IF(J20>6,2,1) -> 1 | G133: 8.4
A135: ATV11HU05M2E | B135: ПРЕОБР ЧАСТОТЫ ATV11 0.18КВТ 220В 1Ф ЕВ | C135: шт | D135: =I135*43 -> 4940.7 | F135: 1 | G135: =D135*E135*F135 -> 0 | I135: 114.9
A136: ATV31H018M2A | B136: ПРЕОБР ЧАСТОТЫ ATV31 0.18КВТ 240В 1Ф АЗ | C136: шт | D136: 6137.39 | F136: 1 | G136: 0 | I136: 142.73
A137: ATV31H037M2A | B137: ПРЕОБР ЧАСТОТЫ ATV31 0.37КВТ 240В 1Ф АЗ | C137: шт | D137: 6379.48 | F137: 1 | G137: 0 | I137: 148.36
A138: ATV31H055M2A | B138: ПРЕОБР ЧАСТОТЫ ATV31 0.55КВТ 240В 1Ф АЗ | C138: шт | D138: 6949.66 | F138: 1 | G138: 0 | I138: 161.62
A139: ATV31H075M2A | B139: ПРЕОБР ЧАСТОТЫ ATV31 0.75КВТ 240В 1Ф АЗ | C139: шт | D139: 7758.49 | F139: 1 | G139: 0 | I139: 180.43
A140: ATV31H075N4 | B140: ПРЕОБР ЧАСТОТЫ ATV31 0.75КВТ 500В 3Ф | C140: шт | D140: =I140*43 -> 10947.8 | F140: 1 | G140: 0 | I140: 254.6
A141: ATV31HU11N4 | B141: ПРЕОБР ЧАСТОТЫ ATV31 1,1КВТ 500В 3Ф | C141: шт | D141: =I141*43 -> 11645.26 | F141: 1 | G141: 0 | I141: 270.82
A142: ATV31HU15N4 | B142: ПРЕОБР ЧАСТОТЫ ATV31 1,5КВТ 500В 3Ф | C142: шт | D142: 12049.89 | F142: 1 | G142: 0 | I142: 280.23
A143: ATV31HU22N4 | B143: ПРЕОБР ЧАСТОТЫ ATV31 2,2КВТ 500В 3Ф | C143: шт | D143: 13327.85 | F143: 1 | G143: 0 | I143: 309.95
A144: ATV31HU30N4 | B144: ПРЕОБР ЧАСТОТЫ ATV31 3КВТ 500В 3Ф | C144: шт | D144: 15125.25 | F144: 1 | G144: 0 | I144: 351.75
A145: ATV31HU40N4 | B145: ПРЕОБР ЧАСТОТЫ ATV31 4КВТ 500В 3Ф | C145: шт | D145: 20759.97 | F145: 1 | G145: 0 | I145: 482.79
A146: ATV31HU55N4 | B146: ПРЕОБР ЧАСТОТЫ ATV31 5,5КВТ 500В 3Ф | C146: шт | D146: 26352.12 | F146: 1 | G146: 0 | I146: 612.84
A147: ATV31HU75N4 | B147: ПРЕОБР ЧАСТОТЫ ATV31 7,5КВТ 500В 3Ф | C147: шт | D147: 30016.15 | F147: 1 | G147: 0 | I147: 698.05
A148: ATV31HD11N4 | B148: ПРЕОБР ЧАСТОТЫ ATV31 11КВТ 500В 3Ф | C148: шт | D148: 37516.21 | F148: 1 | G148: 0 | I148: 872.47
A150: ATS01N212QN | B150: УСТР-ВО ПЛАВН ПУСКА ATS01 12A | C150: шт | D150: =I150*43 -> 6313.26 | F150: 1 | G150: =D150*E150*F150 -> 0 | I150: 146.82
A151: ATS01N222QN | B151: УСТР-ВО ПЛАВН ПУСКА ATS01 22A | C151: шт | D151: =I151*43 -> 8093.03 | F151: 1 | G151: 0 | I151: 188.21
A152: ATS01N232QN | B152: УСТР-ВО ПЛАВН ПУСКА ATS01 32A | C152: шт | D152: 10212.07 | F152: 1 | G152: 0 | I152: 237.49
A153: ATS01N244Q | B153: УСТР-ВО ПЛАВН ПУСКА ATS01 44A | C153: шт | D153: 15606.85 | F153: 1 | G153: 0 | I153: 362.95
A154: ATS01N272Q | B154: УСТР-ВО ПЛАВН ПУСКА ATS01 72A | C154: шт | D154: 21976.87 | F154: 1 | G154: 0 | I154: 511.09
A155: ATS01N285Q | B155: УСТР-ВО ПЛАВН ПУСКА ATS01 85A | C155: шт | D155: 27065.06 | F155: 1 | G155: 0 | I155: 629.42
A157: SB002 2,5A | B157: Симисторный регулятор скорости SB002 до 2,5A | C157: шт | D157: 4908 | E157: =IF(J3=3,1,0) -> 0 | F157: =IF(J10=1,1,0) -> 1 | G157: =D157*E157*F157 -> 0
A158: SB002 5A | B158: Симисторный регулятор скорости SB002 до 5A | C158: шт | D158: 6300 | E158: =IF(J3=3,1,0) -> 0 | F158: =IF(J10=2,1,0) -> 0 | G158: =D158*E158*F158 -> 0
A160: 11-004-000000716 | B160: Regin TBI-30 потенциометр | C160: шт | D160: 19.4 | F160: 1 | G160: =D160*E160*F160 -> 0
A162: sch XB5AD21 | B162: Переключатель 22мм 2 позиции | C162: шт | D162: 420 | F162: 1 | G162: =D162*E162*F162 -> 0
A163: sch XB5AD33 | B163: Переключатель 22мм 3 позиции | C163: шт | D163: 420 | F163: 1 | G163: 0
A164: sch XB7ED25P | B164: Переключатель c фиксацией 22мм 2 позиции | C164: шт | D164: 293 | F164: 1 | G164: 0
A165: sch XB7ED33P | B165: Переключатель c фиксацией 22мм 3 позиции | C165: шт | D165: 293 | E165: =IF(J3=2,1,0) -> 0 | F165: 1 | G165: 0
A166: sch 15151 | B166: Суппорт, для переключателя XB7 | C166: шт | D166: 120 | E166: =IF(J3=2,1,0) -> 0 | F166: 1 | G166: =D166*E166*F166 -> 0
A167: XB7ES545P | B167: Кнопка 22ММ 230-240В Аварийного останова | C167: шт | D167: 358 | F167: 1 | G167: 0
A168: sch XB7EH03M1P | B168: КНОПКА 22ММ 230-240В С ПОДСВ. | C168: шт | D168: 300 | F168: 1 | G168: 0
A170: XB5-AVB3 | B170: лампа зеленая 24В | C170: шт | D170: 360 | F170: 1 | G170: =D170*E170*F170 -> 0
A171: XB5-AVB5 | B171: лампа желтая 24В | C171: шт | D171: 360 | F171: 1 | G171: 0
A172: XB5-AVB4 | B172: лампа красная 24В | C172: шт | D172: 360 | F172: 1 | G172: 0
A173: XB5-AVМ3 | B173: лампа зеленая 220В | C173: шт | D173: 600 | F173: 1 | G173: 0
A174: XB5-AVМ5 | B174: лампа желтая 220В | C174: шт | D174: 600 | F174: 1 | G174: 0
A175: XB5-AVМ4 | B175: лампа красная 220В | C175: шт | D175: 600 | F175: 1 | G175: 0
A176: XB7EV03BP | B176: лампа зеленая 24В | C176: шт | D176: 110 | F176: 1 | G176: 0
A177: XB7EV04BP | B177: лампа красная 24В | C177: шт | D177: 110 | F177: 1 | G177: 0
A178: XB7EV05BP | B178: лампа желтая 24В | C178: шт | D178: 110 | F178: 1 | G178: 0
A179: XB7EV03МP | B179: лампа зеленая 220В | C179: шт | D179: 124 | F179: 1 | G179: 0
A180: XB7EV05МP | B180: лампа желтая 220В | C180: шт | D180: 168 | F180: 1 | G180: 0
A181: XB7EV04МP | B181: лампа красная 220В | C181: шт | D181: 124 | F181: 1 | G181: 0
A183: ZBY 6102 | B183: Держатель маркировки + маркировка | C183: м | D183: 60 | F183: 1 | G183: =D183*E183*F183 -> 0
A185: leg 37404 | B185: Legrand EN 50 022 DIN-рейка глубокая 7.5мм | C185: м | D185: 217 | E185: =IF(J3<4,1,0) -> 1 | F185: 1 | G185: =D185*E185*F185 -> 217
A186: leg 37407 | B186: Legrand EN 50 022 DIN-рейка глубокая 15мм | C186: м | D186: 320 | F186: 1 | G186: =D186*E186*F186 -> 0
A188: leg | B188: Legrand кабельный канал 40х40мм | C188: м | D188: 240 | E188: =IF(J3<4,1,0) -> 1 | F188: 1 | G188: =D188*E188*F188 -> 240
A189: leg 36202 | B189: Legrand Lina 25 кабельный канал 25х60мм | C189: м | D189: 240 | F189: 1 | G189: =D189*E189*F189 -> 0
A190: leg 36207 | B190: Legrand Lina 25 кабельный канал 40х60мм | C190: м | D190: 348 | F190: 1 | G190: =D190*E190*F190 -> 0
A192: leg 390 61 | B192: Legrang Viking 3 зажим наборный серый 4мм | C192: шт | D192: 30 | E192: =IF(J20=1,12,IF(J20=2,15,IF(J20=3,12,IF(J20=4,12,IF(J20=5,12,IF(J20=6,9,IF(J20>6,9,0))))))) -> 12 | F192: =IF(J3=2,6,0) -> 0 | G192: =D192*(E192+F192) -> 360
A193: leg 393 01 | B193: Legrand Viking 3 зажим наборный синий 4мм | C193: шт | D193: 37 | E193: =IF(J20=1,3,IF(J20>1,3,0)) -> 3 | F193: =IF(J3=2,2,0) -> 0 | G193: =D193*(E193+F193) -> 111
A194: leg 393 70 | B194: Legrand Viking 3 зажим наборный земля 5мм | C194: шт | D194: 83 | E194: 0 | F194: 1 | G194: =D194*E194*F194 -> 0
A195: leg 390 64 | B195: Legrand Viking 3 зажим наборный серый 10мм | C195: шт | D195: 84 | E195: =IF(J20=3,3,IF(J20=4,3,IF(J20=5,3,IF(J20=6,6,IF(J20>6,9,IF(J10>5,3,0)))))) -> 0 | F195: 1 | G195: =D195*(E195+F195) -> 84
A196: leg 393 03 | B196: Legrand Viking 3 зажим наборный синий 10мм | C196: шт | D196: 84 | E196: =IF(J20>2,1,IF(J10>5,1,0)) -> 0 | F196: 1 | G196: =D196*E196*F196 -> 0
A197: leg 393 37 | B197: Legrand Viking 3 зажим наборный красный 4мм | C197: шт | D197: 30 | F197: 1 | G197: =D197*E197*F197 -> 0
A198: leg 393 74 | B198: Legrand Viking 3 зажим наборный земля 10мм | C198: шт | D198: 180 | F198: 1 | G198: =D198*E198*F198 -> 0
A200: leg 372 60 | B200: Legrang Viking 3 клеммник пружинный 4х5мм серый | C200: шт | D200: 31 | E200: =IF(J20=1,24,IF(J20=2,21,IF(J20>2,21,0))) -> 24 | F200: 1 | G200: =D200*E200*F200 -> 744
A201: leg 372 00 | B201: Legrang Viking 3 клеммник пружинный 4х5мм синий | C201: шт | D201: 32 | F201: 1 | G201: =D201*E201*F201 -> 0
A203: iek YNS20-3-063 | B203: Шина соединительная типа PIN 3ф до 63А | C203: м | D203: 520 | E203: =IF(J3<4,0.5,0) -> 0.5 | F203: 1 | G203: =D203*E203*F203 -> 260
A204: iek YND10-2-07-100 | B204: Шина нулевая 2х7 в корпусе | C204: шт | D204: 315 | F204: 1 | G204: =D204*E204*F204 -> 0
A206: cab ПВ3 1,5 | B206: Провод ПВ3 1,5мм | C206: м | D206: 15 | E206: =IF(J20=1,50,IF(J20=2,65,IF(J20=3,70,IF(J20=4,70,IF(J20=5,75,IF(J20=6,80,IF(J20>6,100,0))))))) -> 50 | F206: =IF(J3=2,10,0) -> 0 | G206: =D206*(E206+F206) -> 750
A207: cab ПВ3 4 | B207: Провод ПВ3 4мм | C207: м | D207: 40 | E207: =IF(J10>5,10,0) -> 0 | F207: 1 | G207: =D207*E207*F207 -> 0
A208: cab ПВ3 6 | B208: Провод ПВ3 6мм | C208: м | D208: 50 | F208: 1 | G208: =D208*E208*F208 -> 0
C210: компл. | D210: 1200 | E210: 1 | F210: 1 | G210: =D210*E210*F210 -> 1200
C211: шт | D211: 4000 | E211: =IF(J20=1,1,IF(J20=2,1.1,IF(J20=3,1.2,IF(J20=4,1.2,IF(J20=5,1.2,IF(J20=6,1.2,IF(J20>6,1.3,0))))))) -> 1 | F211: 1 | G211: =D211*E211*F211 -> 4000
D212: Итого | G212: =SUM(G4:G211) -> 23792.4
D213: С учетом наценки 15% | G213: =G212*1.15 -> 27361.26
D214: С учетом наценки 20% | G214: =G212*1.2 -> 28550.88
A217: Приточная установка
A218: Приточно-вытяжная установка
A219: Приточная с авто рег. скорости вент. ~1ф
